fUSD/lending_fUSD_20240802
["ID","MTS","AMOUNT","RATE_DAILY","PERIOD"]
[333925798,1722631865808,-922.87,0.00016712,2]
[333925800,1722631865818,-3211.99,0.00016712,2]
[333925802,1722631865829,-797.53,0.00016712,2]
[333925804,1722631865840,-2191.83,0.00016712,2]
[333925806,1722631865849,-3705.69,0.00016712,2]
[333925808,1722631865860,-500.0,0.00016712,2]
[333925811,1722631865871,-500.0,0.00016712,2]
[333925813,1722631865881,-1575.51,0.00016712,2]
[333925815,1722631865893,-500.0,0.00016712,2]
[333925817,1722631865903,-3196.73,0.00016712,2]
[333925819,1722631865914,-2709.61,0.00016712,2]
[333925821,1722631865925,-500.0,0.00016712,2]
[333925823,1722631865934,-2713.18,0.00016712,2]
[333925825,1722631865944,-4453.97,0.00016712,2]
[333925827,1722631865954,-1958.22,0.00016712,2]
[333925829,1722631865963,-247.90324173,0.00016712,2]
[333925831,1722631865975,-2340.98,0.00016712,2]
[333925833,1722631865984,-500.0,0.00016712,2]
[333925835,1722631865994,-500.0,0.00016712,2]
[333925837,1722631866004,-563.69,0.00016712,2]
[333925839,1722631866013,-869.62,0.00016712,2]
[333925842,1722631866024,-2375.03,0.00016712,2]
[333925843,1722631866033,-500.0,0.00016712,2]
[333925845,1722631866043,-500.0,0.00016712,2]
[333925847,1722631866052,-2389.86,0.00016712,2]
[333925849,1722631866062,-500.0,0.00016712,2]
[333925852,1722631866072,-1715.15,0.00016712,2]
[333925854,1722631866082,-630.02,0.00016712,2]
[333925856,1722631866092,-500.0,0.00016712,2]
[333925858,1722631866103,-3562.05,0.00016712,2]
[333925860,1722631866114,-2469.32,0.00016712,2]
[333925862,1722631866125,-6540.2,0.00016712,2]
[333925864,1722631866134,-9151.13,0.00016712,2]
[333925866,1722631866145,-509.1,0.00016712,2]
[333925868,1722631866155,-4990.42,0.00016712,2]
[333925870,1722631866164,-3342.69,0.00016712,2]
[333925872,1722631866174,-658.08,0.00016712,2]
[333925874,1722631866183,-500.0,0.00016712,2]
[333925876,1722631866192,-151.0,0.00016712,2]
[333925878,1722631866203,-151.0,0.00016712,2]
[333925880,1722631866212,-26009.1,0.00016712,2]
[333925882,1722631866222,-28175.02,0.00016712,2]
[333925884,1722631866233,-151.0,0.00016712,2]
[333925886,1722631866242,-500.0,0.00016712,2]
[333925888,1722631866252,-151.0,0.00016712,2]
[333925890,1722631866262,-4775.81,0.00016712,2]
[333925892,1722631866274,-1900.39,0.00016712,2]
[333925894,1722631866283,-206.671484,0.00016712,2]
[333925896,1722631866293,-2182.95,0.00016712,2]
[333925898,1722631866303,-1438.66,0.00016712,2]
[333925900,1722631866313,-4377.02,0.00016712,2]
[333925902,1722631866323,-6436.04,0.00016712,2]
[333925904,1722631866334,-500.0,0.00016712,2]
[333925906,1722631866344,-3264.99,0.00016712,2]
[333925908,1722631866354,-852.15,0.00016712,2]
[333925910,1722631866363,-645.59,0.00016712,2]
[333925912,1722631866374,-1240.73,0.00016712,2]
[333925914,1722631866383,-500.0,0.00016712,2]
[333925916,1722631866393,-3696.16,0.00016712,2]
[333925918,1722631866402,-1202.01,0.00016712,2]
[333925920,1722631866412,-2794.37,0.00016712,2]
[333925922,1722631866423,-500.0,0.00016712,2]
[333925924,1722631866432,-2251.71,0.00016712,2]
[333925926,1722631866442,-500.0,0.00016712,2]
[333925928,1722631866451,-926.19,0.00016712,2]
[333925930,1722631866461,-3027.14,0.00016712,2]
[333925932,1722631866471,-1612.54,0.00016712,2]
[333925934,1722631866480,-504.24,0.00016712,2]
[333925936,1722631866490,-500.0,0.00016712,2]
[333925938,1722631866499,-2122.85,0.00016712,2]
[333925940,1722631866510,-694.52,0.00016712,2]
[333925942,1722631866519,-3341.29,0.00016712,2]
[333925944,1722631866530,-1082.52,0.00016712,2]
[333925946,1722631866540,-650.54,0.00016712,2]
[333925948,1722631866550,-2598.43,0.00016712,2]
[333925950,1722631866559,-6297.72,0.00016712,2]
[333925952,1722631866569,-2653.91,0.00016712,2]
[333925954,1722631866578,-2172.15,0.00016712,2]
[333925956,1722631866588,-500.0,0.00016712,2]
[333925958,1722631866598,-500.0,0.00016712,2]
[333925960,1722631866607,-948.12,0.00016712,2]
[333925962,1722631866618,-1222.98,0.00016712,2]
[333925964,1722631866629,-500.0,0.00016712,2]
[333925966,1722631866639,-2097.85,0.00016712,2]
[333925968,1722631866648,-1334.04,0.00016712,2]
[333925969,1722631866657,-500.0,0.00016712,2]
[333925970,1722631866673,-6565.68,0.00016712,2]
[333925971,1722631866685,-500.0,0.00016712,2]
[333925972,1722631866695,-15546.98,0.00016712,2]
[333925973,1722631866704,-3121.8,0.00016712,2]
[333925974,1722631866714,-817.51,0.00016712,2]
[333925975,1722631866725,-500.0,0.00016712,2]
[333925976,1722631866735,-951.07,0.00016712,2]
[333925977,1722631866747,-500.0,0.00016712,2]
[333925978,1722631866757,-11666.5,0.00016712,2]
[333925979,1722631866767,-1727.02,0.00016712,2]
[333925980,1722631866778,-1473.22,0.00016712,2]
[333925981,1722631866787,-6263.88,0.00016712,2]
[333925982,1722631866797,-2288.81,0.00016712,2]
[333925983,1722631866808,-1227.93,0.00016712,2]
[333925984,1722631866819,-500.0,0.00016712,2]
[333925985,1722631866830,-1322.25,0.00016712,2]
[333925986,1722631866840,-522.62,0.00016712,2]
[333925987,1722631866850,-1919.7,0.00016712,2]
[333925988,1722631866859,-500.0,0.00016712,2]
[333925989,1722631866870,-3515.09,0.00016712,2]
[333925990,1722631866880,-500.0,0.00016712,2]
[333925991,1722631866889,-3829.18,0.00016712,2]
[333925992,1722631866899,-5376.17,0.00016712,2]
[333925993,1722631866908,-673.19,0.00016712,2]
[333925994,1722631866920,-2822.75,0.00016712,2]
[333925995,1722631866930,-500.0,0.00016712,2]
[333925996,1722631866939,-2008.35,0.00016712,2]
[333925997,1722631866949,-981.35,0.00016712,2]
[333925998,1722631866959,-500.0,0.00016712,2]
[333925999,1722631866968,-151.0,0.00016712,2]
[333926000,1722631866977,-685.52,0.00016712,2]
[333926001,1722631866986,-151.0,0.00016712,2]
[333926002,1722631866995,-151.0,0.00016712,2]
[333926003,1722631867004,-151.0,0.00016712,2]
[333926004,1722631867014,-500.0,0.00016712,2]
[333926005,1722631867024,-4435.49,0.00016712,2]
[333926006,1722631867033,-500.0,0.00016712,2]
[333926007,1722631867043,-151.0,0.00016712,2]
[333926008,1722631867053,-151.0,0.00016712,2]
[333926009,1722631867063,-151.0,0.00016712,2]
[333926010,1722631867072,-151.0,0.00016712,2]
[333926011,1722631867082,-872.74,0.00016712,2]
[333926012,1722631867091,-500.0,0.00016712,2]
[333926013,1722631867101,-949.06,0.00016712,2]
[333926014,1722631867111,-2658.03,0.00016712,2]
[333926015,1722631867120,-5218.0,0.00016712,2]
[333926016,1722631867131,-3400.22,0.00016712,2]
[333926017,1722631867140,-500.0,0.00016712,2]
[333926018,1722631867151,-574.23,0.00016712,2]
[333926019,1722631867160,-2831.52,0.00016712,2]
[333926020,1722631867171,-1002.52,0.00016712,2]
[333926021,1722631867181,-2314.61,0.00016712,2]
[333926022,1722631867191,-500.0,0.00016712,2]
[333926023,1722631867200,-500.0,0.00016712,2]
[333926024,1722631867209,-776.68,0.00016712,2]
[333926025,1722631867218,-500.0,0.00016712,2]
[333926026,1722631867227,-739.66,0.00016712,2]
[333926027,1722631867236,-952.19,0.00016712,2]
[333926028,1722631867245,-3943.83,0.00016712,2]
[333926029,1722631867255,-500.0,0.00016712,2]
[333926030,1722631867264,-400.0,0.00016712,2]
[333926031,1722631867274,-1370.55,0.00016712,2]
[333926032,1722631867283,-3719.52,0.00016712,2]
[333926033,1722631867293,-879.88,0.00016712,2]
[333926034,1722631867306,-5662.54,0.00016712,2]
[333926035,1722631867315,-778.51,0.00016712,2]
[333926036,1722631867325,-3003.87,0.00016712,2]
[333926037,1722631867334,-4114.11,0.00016712,2]
[333926038,1722631867344,-2947.17,0.00016712,2]
[333926039,1722631867353,-994.11,0.00016712,2]
[333926040,1722631867362,-500.0,0.00016712,2]
[333926041,1722631867371,-5178.68,0.00016712,2]
[333926042,1722631867381,-500.0,0.00016712,2]
[333926043,1722631867390,-538.2988519,0.00016712,2]
[333926044,1722631867399,-500.0,0.00016712,2]
[333926045,1722631867409,-4631.47,0.00016712,2]
[333926046,1722631867418,-3399.15,0.00016712,2]
[333926047,1722631867427,-151.0,0.00016712,2]
[333926048,1722631867436,-196.505752,0.00016712,2]
[333926049,1722631867446,-1176.85,0.00016712,2]
[333926050,1722631867455,-901.79,0.00016712,2]
[333926051,1722631867465,-500.0,0.00016712,2]
[333926052,1722631867474,-1866.32,0.00016712,2]
[333926053,1722631867483,-2716.92,0.00016712,2]
[333926054,1722631867492,-500.0,0.00016712,2]
[333926055,1722631867501,-5014.53,0.00016712,2]
[333926056,1722631867510,-6934.89,0.00016712,2]
[333926057,1722631867521,-2157.87,0.00016712,2]
[333926058,1722631867530,-1862.83,0.00016712,2]
[333926059,1722631867539,-3448.97,0.00016712,2]
[333926060,1722631867549,-502.73,0.00016712,2]
[333926061,1722631867558,-1053.43,0.00016712,2]
[333926062,1722631867567,-3688.62,0.00016712,2]
[333926063,1722631867576,-1295.04,0.00016712,2]
[333926064,1722631867586,-17990.99,0.00016712,2]
[333926065,1722631867595,-9446.74,0.00016712,2]
[333926066,1722631867604,-940.79,0.00016712,2]
[333926067,1722631867614,-6650.95,0.00016712,2]
[333926068,1722631867623,-500.0,0.00016712,2]
[333926069,1722631867632,-500.0,0.00016712,2]
[333926070,1722631867641,-500.0,0.00016712,2]
[333926071,1722631867651,-2082.58,0.00016712,2]
[333926072,1722631867660,-4468.87,0.00016712,2]
[333926073,1722631867676,-3800.28,0.00016712,2]
[333926074,1722631867685,-1111.44,0.00016712,2]
[333926075,1722631867694,-1255.1,0.00016712,2]
[333926076,1722631867704,-500.0,0.00016712,2]
[333926077,1722631867714,-500.0,0.00016712,2]
[333926078,1722631867723,-750.36,0.00016712,2]
[333926079,1722631867733,-1533.49,0.00016712,2]
[333926080,1722631867742,-3300.34,0.00016712,2]
[333926081,1722631867754,-500.0,0.00016712,2]
[333926082,1722631867764,-3049.98,0.00016712,2]
[333926083,1722631867773,-1836.69,0.00016712,2]
[333926084,1722631867783,-2045.49,0.00016712,2]
[333926085,1722631867793,-1276.99,0.00016712,2]
[333926086,1722631867803,-500.0,0.00016712,2]
[333926087,1722631867814,-1190.92,0.00016712,2]
[333926088,1722631867823,-537.78,0.00016712,2]
[333926089,1722631867834,-3361.18,0.00016712,2]
[333926090,1722631867844,-939.76,0.00016712,2]
[333926091,1722631867854,-896.88,0.00016712,2]
[333926092,1722631867864,-2572.45,0.00016712,2]
[333926093,1722631867873,-347.01013436,0.00016776,2]
[333926094,1722631867882,-16045.63488926,0.00016845,2]
[333926095,1722631867892,-151.72863448,0.00016912,2]
[333926096,1722631867902,-163.06583263,0.00016915,2]
[333926097,1722631867911,-200.0,0.00016973,2]
[333926098,1722631867922,-200.0,0.00016973,2]
[333926099,1722631867932,-200.0,0.00016973,2]
[333926100,1722631867942,-11383.1352585,0.00016974,2]
[333926101,1722631867952,-1371.0652544,0.00016974,2]
[333926102,1722631867962,-66124.5571108,0.00016975,2]
[333926103,1722631867971,-4285.894311,0.00016975,2]
[333926104,1722631867981,-1017.59783216,0.00016983,2]
[333926105,1722631867992,-192.7632254,0.00016986,2]
[333926106,1722631868002,-500.0,0.00016986,2]
[333926107,1722631868011,-1253.02,0.00016986,2]
[333926108,1722631868020,-500.0,0.00016986,2]
[333926109,1722631868030,-500.0,0.00016986,2]
[333926110,1722631868041,-500.0,0.00016986,2]
[333926111,1722631868052,-2250.07,0.00016986,2]
[333926112,1722631868063,-1145.72,0.00016986,2]
[333926113,1722631868072,-500.0,0.00016986,2]
[333926114,1722631868082,-500.0,0.00016986,2]
[333926115,1722631868091,-643.67,0.00016986,2]
[333926116,1722631868100,-828.51,0.00016986,2]
[333926117,1722631868110,-659.65,0.00016986,2]
[333926118,1722631868119,-714.58,0.00016986,2]
[333926119,1722631868128,-1399.14,0.00016986,2]
[333926120,1722631868137,-500.0,0.00016986,2]
[333926121,1722631868146,-500.0,0.00016986,2]
[333926122,1722631868155,-500.0,0.00016986,2]
[333926123,1722631868164,-500.0,0.00016986,2]
[333926124,1722631868175,-959.33,0.00016986,2]
[333926125,1722631868184,-500.0,0.00016986,2]
[333926126,1722631868194,-1202.33,0.00016986,2]
[333926127,1722631868203,-500.0,0.00016986,2]
[333926128,1722631868212,-801.79,0.00016986,2]
[333926129,1722631868221,-850.22,0.00016986,2]
[333926130,1722631868231,-500.0,0.00016986,2]
[333926131,1722631868239,-500.0,0.00016986,2]
[333926132,1722631868249,-1940.96,0.00016986,2]
[333926133,1722631868258,-1164.02,0.00016986,2]
[333926134,1722631868268,-500.0,0.00016986,2]
[333926135,1722631868277,-227.08,0.00016986,2]
[333926136,1722631868286,-500.0,0.00016986,2]
[333926137,1722631868296,-684.63,0.00016986,2]
[333926138,1722631868305,-1463.38,0.00016986,2]
[333926139,1722631868314,-678.52,0.00016986,2]
[333926140,1722631868324,-1236.27,0.00016986,2]
[333926141,1722631868333,-500.0,0.00016986,2]
[333926142,1722631868342,-912.78,0.00016986,2]
[333926143,1722631868352,-1399.18,0.00016986,2]
[333926144,1722631868362,-601.54,0.00016986,2]
[333926145,1722631868371,-717.09,0.00016986,2]
[333926146,1722631868381,-500.0,0.00016986,2]
[333926147,1722631868390,-500.0,0.00016986,2]
[333926148,1722631868400,-624.24,0.00016986,2]
[333926149,1722631868409,-772.84,0.00016986,2]
[333926150,1722631868420,-500.0,0.00016986,2]
[333926151,1722631868430,-500.0,0.00016986,2]
[333926152,1722631868440,-590.92,0.00016986,2]
[333926153,1722631868450,-500.0,0.00016986,2]
[333926154,1722631868460,-500.0,0.00016986,2]
[333926155,1722631868469,-500.0,0.00016986,2]
[333926156,1722631868479,-1290.26,0.00016986,2]
[333926157,1722631868489,-578.21,0.00016986,2]
[333926158,1722631868498,-558.06954142,0.00016986,2]
[333926159,1722631868507,-1619.87,0.00016986,2]
[333926160,1722631868517,-500.0,0.00016986,2]
[333926161,1722631868527,-570.92,0.00016986,2]
[333926162,1722631868536,-540.78,0.00016986,2]
[333926163,1722631868546,-696.91,0.00016986,2]
[333926164,1722631868555,-1078.33,0.00016986,2]
[333926165,1722631868564,-500.0,0.00016986,2]
[333926166,1722631868573,-623.34,0.00016986,2]
[333926167,1722631868582,-1419.39,0.00016986,2]
[333926168,1722631868592,-500.0,0.00016986,2]
[333926169,1722631868601,-1662.54,0.00016986,2]
[333926170,1722631868611,-1644.64,0.00016986,2]
[333926171,1722631868620,-780.53,0.00016986,2]
[333926172,1722631868630,-723.34,0.00016986,2]
[333926173,1722631868640,-553.18,0.00016986,2]
[333926174,1722631868650,-791.76,0.00016986,2]
[333926175,1722631868659,-500.0,0.00016986,2]
[333926176,1722631868671,-503.13,0.00016986,2]
[333926177,1722631868681,-801.56,0.00016986,2]
[333926178,1722631868690,-1198.81,0.00016986,2]
[333926179,1722631868699,-500.0,0.00016986,2]
[333926180,1722631868708,-500.0,0.00016986,2]
[333926181,1722631868718,-1604.9,0.00016986,2]
[333926182,1722631868728,-729.83,0.00016986,2]
[333926183,1722631868737,-1748.07,0.00016986,2]
[333926184,1722631868749,-500.0,0.00016986,2]
[333926185,1722631868758,-2059.13,0.00016986,2]
[333926186,1722631868768,-1346.22,0.00016986,2]
[333926187,1722631868778,-997.69,0.00016986,2]
[333926188,1722631868787,-500.0,0.00016986,2]
[333926189,1722631868796,-333.36788227,0.00016986,2]
[333926190,1722631868806,-1212.35,0.00016986,2]
[333926191,1722631868816,-843.11,0.00016986,2]
[333926192,1722631868825,-500.0,0.00016986,2]
[333926193,1722631868835,-500.0,0.00016986,2]
[333926194,1722631868844,-1363.88,0.00016986,2]
[333926195,1722631868853,-1866.38,0.00016986,2]
[333926196,1722631868862,-500.0,0.00016986,2]
[333926197,1722631868872,-500.0,0.00016986,2]
[333926198,1722631868882,-500.0,0.00016986,2]
[333926199,1722631868891,-1438.22,0.00016986,2]
[333926200,1722631868901,-643.47,0.00016986,2]
[333926201,1722631868910,-500.0,0.00016986,2]
[333926202,1722631868921,-500.0,0.00016986,2]
[333926203,1722631868931,-500.0,0.00016986,2]
[333926204,1722631868941,-1643.03,0.00016986,2]
[333926205,1722631868950,-543.03,0.00016986,2]
[333926206,1722631868959,-500.0,0.00016986,2]
[333926207,1722631868969,-500.0,0.00016986,2]
[333926208,1722631868978,-1346.74,0.00016986,2]
[333926209,1722631868988,-635.67,0.00016986,2]
[333926210,1722631868997,-500.0,0.00016986,2]
[333926211,1722631869006,-553.97,0.00016986,2]
[333926212,1722631869016,-500.0,0.00016986,2]
[333926213,1722631869026,-500.0,0.00016986,2]
[333926214,1722631869036,-500.0,0.00016986,2]
[333926215,1722631869045,-500.0,0.00016986,2]
[333926216,1722631869055,-500.0,0.00016986,2]
[333926217,1722631869065,-500.0,0.00016986,2]
[333926218,1722631869074,-500.0,0.00016986,2]
[333926219,1722631869084,-1307.89,0.00016986,2]
[333926220,1722631869094,-2273.53,0.00016986,2]
[333926221,1722631869103,-713.8,0.00016986,2]
[333926222,1722631869112,-500.0,0.00016986,2]
[333926223,1722631869121,-970.89,0.00016986,2]
[333926224,1722631869131,-972.89,0.00016986,2]
[333926225,1722631869140,-500.0,0.00016986,2]
[333926226,1722631869149,-931.08,0.00016986,2]
[333926227,1722631869158,-936.47,0.00016986,2]
[333926228,1722631869168,-500.0,0.00016986,2]
[333926229,1722631869177,-575.8,0.00016986,2]
[333926230,1722631869186,-1868.69,0.00016986,2]
[333926231,1722631869195,-500.0,0.00016986,2]
[333926232,1722631869205,-500.0,0.00016986,2]
[333926233,1722631869214,-500.0,0.00016986,2]
[333926234,1722631869224,-500.0,0.00016986,2]
[333926235,1722631869234,-500.0,0.00016986,2]
[333926236,1722631869243,-500.0,0.00016986,2]
[333926237,1722631869253,-500.0,0.00016986,2]
[333926238,1722631869262,-524.60798772,0.00016986,2]
[333926239,1722631869272,-500.0,0.00016986,2]
[333926240,1722631869281,-952.94,0.00016986,2]
[333926241,1722631869291,-1018.81,0.00016986,2]
[333926242,1722631869301,-500.0,0.00016986,2]
[333926243,1722631869311,-2273.19,0.00016986,2]
[333926244,1722631869320,-942.1,0.00016986,2]
[333926245,1722631869329,-500.0,0.00016986,2]
[333926246,1722631869338,-500.0,0.00016986,2]
[333926247,1722631869347,-500.0,0.00016986,2]
[333926248,1722631869356,-548.9,0.00016986,2]
[333926249,1722631869366,-500.0,0.00016986,2]
[333926250,1722631869376,-1144.56,0.00016986,2]
[333926251,1722631869386,-912.95,0.00016986,2]
[333926252,1722631869396,-785.19,0.00016986,2]
[333926253,1722631869405,-857.91,0.00016986,2]
[333926254,1722631869415,-3574.48,0.00016986,2]
[333926255,1722631869425,-911.5,0.00016986,2]
[333926256,1722631869436,-500.0,0.00016986,2]
[333926257,1722631869445,-500.0,0.00016986,2]
[333926258,1722631869454,-642.03,0.00016986,2]
[333926259,1722631869464,-967.56,0.00016986,2]
[333926260,1722631869474,-1908.36,0.00016986,2]
[333926261,1722631869483,-2571.87,0.00016986,2]
[333926262,1722631869492,-500.0,0.00016986,2]
[333926263,1722631869502,-566.34,0.00016986,2]
[333926264,1722631869511,-500.0,0.00016986,2]
[333926265,1722631869520,-581.52,0.00016986,2]
[333926266,1722631869530,-500.0,0.00016986,2]
[333926267,1722631869539,-500.0,0.00016986,2]
[333926268,1722631869549,-500.0,0.00016986,2]
[333926269,1722631869558,-500.0,0.00016986,2]
[333926270,1722631869568,-500.0,0.00016986,2]
[333926271,1722631869578,-500.0,0.00016986,2]
[333926272,1722631869588,-500.0,0.00016986,2]
[333926273,1722631869597,-4070.42,0.00016986,2]
[333926274,1722631869607,-315.57466743,0.00016986,2]
[333926275,1722631869616,-1569.57,0.00016986,2]
[333926276,1722631869626,-500.0,0.00016986,2]
[333926277,1722631869636,-604.92,0.00016986,2]
[333926278,1722631869646,-500.0,0.00016986,2]
[333926279,1722631869657,-1902.31,0.00016986,2]
[333926280,1722631869667,-500.0,0.00016986,2]
[333926281,1722631869681,-3171.16,0.00016986,2]
[333926282,1722631869690,-1925.65,0.00016986,2]
[333926283,1722631869700,-500.0,0.00016986,2]
[333926284,1722631869711,-775.73,0.00016986,2]
[333926285,1722631869721,-509.13,0.00016986,2]
[333926286,1722631869730,-632.85,0.00016986,2]
[333926287,1722631869875,-500.0,0.00016986,2]
[333926288,1722631869884,-500.0,0.00016986,2]
[333926289,1722631869894,-500.0,0.00016986,2]
[333926290,1722631869904,-2796.08,0.00016986,2]
[333926291,1722631869913,-500.0,0.00016986,2]
[333926292,1722631869925,-500.0,0.00016986,2]
[333926293,1722631869935,-568.17,0.00016986,2]
[333926294,1722631869944,-500.0,0.00016986,2]
[333926295,1722631869954,-500.0,0.00016986,2]
[333926296,1722631869963,-1396.97,0.00016986,2]
[333926297,1722631869973,-500.0,0.00016986,2]
[333926298,1722631869983,-500.0,0.00016986,2]
[333926299,1722631869993,-1423.73,0.00016986,2]
[333926300,1722631870004,-589.64,0.00016986,2]
[333926301,1722631870014,-3622.56,0.00016986,2]
[333926302,1722631870024,-1390.52,0.00016986,2]
[333926303,1722631870034,-502.72,0.00016986,2]
[333926304,1722631870044,-1472.08,0.00016986,2]
[333926305,1722631870054,-792.33,0.00016986,2]
[333926306,1722631870064,-500.0,0.00016986,2]
[333926307,1722631870073,-500.0,0.00016986,2]
[333926308,1722631870083,-545.12,0.00016986,2]
[333926309,1722631870092,-864.1,0.00016986,2]
[333926310,1722631870102,-926.8,0.00016986,2]
[333926311,1722631870112,-500.0,0.00016986,2]
[333926312,1722631870122,-1780.07,0.00016986,2]
[333926313,1722631870132,-500.0,0.00016986,2]
[333926314,1722631870143,-500.0,0.00016986,2]
[333926315,1722631870153,-500.0,0.00016986,2]
[333926316,1722631870163,-2744.34,0.00016986,2]
[333926317,1722631870175,-500.0,0.00016986,2]
[333926318,1722631870185,-937.69,0.00016986,2]
[333926319,1722631870194,-500.0,0.00016986,2]
[333926320,1722631870204,-514.08271887,0.00016986,2]
[333926321,1722631870214,-1280.51,0.00016986,2]
[333926322,1722631870224,-514.38,0.00016986,2]
[333926323,1722631870234,-818.37,0.00016986,2]
[333926324,1722631870244,-838.61,0.00016986,2]
[333926325,1722631870253,-951.01,0.00016986,2]
[333926326,1722631870263,-626.64,0.00016986,2]
[333926327,1722631870273,-1995.24,0.00016986,2]
[333926328,1722631870283,-654.45,0.00016986,2]
[333926329,1722631870293,-847.4,0.00016986,2]
[333926330,1722631870303,-600.89,0.00016986,2]
[333926331,1722631870312,-1909.77,0.00016986,2]
[333926332,1722631870322,-2227.89,0.00016986,2]
[333926333,1722631870332,-1231.33,0.00016986,2]
[333926334,1722631870342,-739.69,0.00016986,2]
[333926335,1722631870351,-510.81747822,0.00016986,2]
[333926336,1722631870361,-710.35,0.00016986,2]
[333926337,1722631870370,-500.0,0.00016986,2]
[333926338,1722631870380,-901.9,0.00016986,2]
[333926339,1722631870389,-1140.9,0.00016986,2]
[333926340,1722631870399,-1107.75,0.00016986,2]
[333926341,1722631870408,-838.92,0.00016986,2]
[333926342,1722631870418,-779.08,0.00016986,2]
[333926343,1722631870429,-500.0,0.00016986,2]
[333926344,1722631870438,-739.76,0.00016986,2]
[333926345,1722631870448,-500.0,0.00016986,2]
[333926346,1722631870458,-500.0,0.00016986,2]
[333926347,1722631870468,-837.24,0.00016986,2]
[333926348,1722631870478,-2254.89,0.00016986,2]
[333926349,1722631870487,-500.0,0.00016986,2]
[333926350,1722631870497,-298.33,0.00016986,2]
[333926351,1722631870507,-1462.52,0.00016986,2]
[333926352,1722631870516,-500.0,0.00016986,2]
[333926353,1722631870526,-500.0,0.00016986,2]
[333926354,1722631870536,-1622.17,0.00016986,2]
[333926355,1722631870546,-724.79,0.00016986,2]
[333926356,1722631870556,-500.0,0.00016986,2]
[333926357,1722631870566,-518.72271369,0.00016986,2]
[333926358,1722631870576,-500.0,0.00016986,2]
[333926359,1722631870586,-664.84,0.00016986,2]
[333926360,1722631870596,-942.67,0.00016986,2]
[333926361,1722631870610,-500.0,0.00016986,2]
[333926362,1722631870620,-500.0,0.00016986,2]
[333926363,1722631870630,-1774.4,0.00016986,2]
[333926364,1722631870641,-518.59,0.00016986,2]
[333926365,1722631870651,-1306.91,0.00016986,2]
[333926366,1722631870661,-816.02,0.00016986,2]
[333926367,1722631870675,-500.0,0.00016986,2]
[333926368,1722631870685,-500.0,0.00016986,2]
[333926369,1722631870694,-1436.48,0.00016986,2]
[333926370,1722631870704,-2359.52,0.00016986,2]
[333926371,1722631870715,-500.0,0.00016986,2]
[333926372,1722631870725,-637.69994182,0.00016986,2]
[333926373,1722631870735,-1396.66,0.00016986,2]
[333926374,1722631870745,-594.62,0.00016986,2]
[333926375,1722631870755,-500.0,0.00016986,2]
[333926376,1722631870765,-500.0,0.00016986,2]
[333926377,1722631870775,-875.09,0.00016986,2]
[333926378,1722631870785,-792.67,0.00016986,2]
[333926379,1722631870794,-1592.97,0.00016986,2]
[333926380,1722631870804,-500.0,0.00016986,2]
[333926381,1722631870814,-1082.51,0.00016986,2]
[333926382,1722631870823,-500.0,0.00016986,2]
[333926383,1722631870833,-534.84,0.00016986,2]